bitfinex/quotes_ETHUSD_20250411
["timestamp","ask_amount","ask_price","bid_price","bid_amount"]
[1744379648460,7.979,1572.1,1571.5,7.9367]
[1744379648664,7.979,1572.1,1571.8,6.36198]
[1744379649004,7.979,1572.1,1571.8,12.724]
[1744379649218,15.42657,1572.2,1571.9,6.36169]
[1744379649575,6.36096,1572.1,1571.8,12.724]
[1744379649800,1.5524,1572.4,1572.2,6.36051]
[1744379649967,6.35982,1572.4,1572.1,6.36088]
[1744379650169,4.69707879,1572.5,1572.2,0.06360271]
[1744379650471,4.69707879,1572.5,1572.3,6.35981]
[1744379650663,4.69707879,1572.5,1572.4,6.3597]
[1744379651315,4.69707879,1572.5,1572.4,8.03879169]
[1744379651476,4.69707879,1572.5,1572.4,7.9752]
[1744379652207,4.69707879,1572.5,1572.4,6.57361532]
[1744379652703,4.69707879,1572.5,1572.4,6.3597]
[1744379652922,4.69707879,1572.5,1572.3,8.59625127]
[1744379653096,11.05653879,1572.5,1572.1,6.36057]
[1744379653290,11.05653879,1572.5,1572.2,6.36043]
[1744379653500,6.35946,1572.5,1572.2,6.36043]
[1744379653792,6.3589,1572.6,1572.2,6.36034]
[1744379654125,8.2742579,1572.9,1572.2,3.0]
[1744379654290,8.2742579,1572.9,1572.6,6.35867]
[1744379654633,8.2742579,1572.9,1572.7,6.42191319]
[1744379654634,0.3955379,1572.9,1572.7,6.42191319]
[1744379654797,0.3955379,1572.9,1572.8,6.35808]
[1744379655699,0.3955379,1572.9,1572.7,7.9355]
[1744379656528,6.7533379,1572.9,1572.5,6.35917]
[1744379656709,0.3955379,1572.9,1572.6,6.35874]
[1744379656890,6.35818,1572.8,1572.5,12.71829]
[1744379657089,6.35818,1572.8,1572.5,1.423769]
[1744379657428,6.7532179,1572.9,1572.5,6.42281384]
[1744379657636,6.35841,1572.8,1572.4,7.87891]
[1744379657938,6.35984,1572.4,1572.1,12.72153]
[1744379658100,6.35867,1572.7,1572.3,6.35998]
[1744379658306,6.35931,1572.5,1572.2,6.36042]
[1744379658507,6.35925,1572.6,1572.2,6.36036]
[1744379658704,13.512037,1572.7,1572.3,6.36005]
[1744379658903,6.35938,1572.5,1572.1,6.36058]
[1744379659127,6.35938,1572.5,1571.9,6.36141]
[1744379659128,7.8917,1572.5,1571.9,6.36168]
[1744379659287,6.36129,1572.1,1571.7,6.36236]
[1744379659483,1.5324,1572.2,1571.7,6.3625]
[1744379659784,1.5324,1572.2,1571.7,6.36242]
[1744379659785,6.361,1572.1,1571.7,6.36242]
[1744379660013,1.5324,1572.2,1571.9,6.36144]
[1744379660199,17.03202,1572.4,1571.7,1.58191221]
[1744379660385,17.03202,1572.4,1572.0,12.72222]
[1744379660596,23.39201,1572.4,1572.0,6.36106]
[1744379660798,6.36012,1572.3,1572.0,6.36106]
[1744379660999,6.36052,1572.2,1571.9,6.36158]
[1744379661230,12.72055,1572.3,1571.9,6.36158]
[1744379661413,6.36012,1572.3,1572.0,6.36131]
[1744379661741,6.36123,1572.1,1571.7,7.88068]
[1744379662031,12.72285,1572.0,1571.6,6.36284]
[1744379662203,6.36176,1571.9,1571.6,6.36284]
[1744379663229,1.5482,1572.0,1571.5,1.6347]
[1744379663436,7.86591,1572.2,1571.8,6.36183]
[1744379663736,6.36189,1571.9,1571.6,6.36286]
[1744379664744,6.36189,1571.9,1571.6,12.72566]
[1744379665027,12.7229,1572.0,1571.7,6.36253]
[1744379665237,6.36173,1571.9,1571.6,12.72561]
[1744379665432,6.36173,1571.9,1571.6,6.3628]
[1744379665824,12.72365,1571.9,1571.6,6.3628]
[1744379666134,6.36173,1571.9,1571.6,6.36276]
[1744379667347,6.36137,1572.0,1571.6,6.36276]
[1744379667502,6.36176,1571.9,1571.6,6.36276]
[1744379668214,6.36176,1571.9,1571.6,6.36292]
[1744379668447,1.5054,1572.2,1572.0,6.36113]
[1744379668604,6.36026,1572.3,1571.9,6.36157]
[1744379668805,6.3601,1572.3,1571.7,6.36238]
[1744379669145,14.2455,1572.0,1571.7,6.36238]
[1744379669333,14.24548,1572.0,1571.7,6.36238]
[1744379669534,6.3601,1572.3,1571.7,6.36238]
[1744379669535,4.6156,1572.3,1571.8,0.06362116]
[1744379669840,6.36085,1572.2,1571.8,6.36198]
[1744379670008,6.3611,1572.1,1571.8,6.36198]
[1744379670208,12.72222,1572.1,1571.8,6.36213]
[1744379670604,12.7222,1572.1,1571.8,6.36213]
[1744379670809,6.36133,1572.0,1571.7,6.36242]
[1744379671210,6.361,1572.1,1571.8,6.36197]
[1744379671744,12.72222,1572.1,1571.8,6.36197]
[1744379672102,12.72222,1572.1,1571.7,12.72482]
[1744379672347,6.361,1572.1,1571.8,12.724]
[1744379672513,12.72211,1572.1,1571.8,6.36199]
[1744379673849,14.3882,1571.9,1571.5,14.36105]
[1744379674008,8.02608,1571.9,1571.6,6.36279]
[1744379674212,6.36141,1572.0,1571.6,0.06362209]
[1744379674518,8.02522,1572.1,1571.8,6.36184]
[1744379674743,14.38635,1572.1,1571.8,6.36184]
[1744379675047,15.188802,1572.1,1571.8,6.36184]
[1744379676407,15.188802,1572.1,1571.7,12.72492]
[1744379676736,8.02522,1572.1,1571.8,6.36211]
[1744379676920,6.36153,1572.0,1571.7,12.72483]
[1744379677103,6.36153,1572.0,1571.7,6.36241]
[1744379677308,6.36153,1572.0,1571.7,12.72483]
[1744379677507,12.72311,1572.0,1571.7,6.36241]
[1744379677837,7.800271,1572.0,1571.7,6.36241]
[1744379678141,6.36153,1572.0,1571.7,6.36241]
[1744379678743,6.36153,1572.0,1571.6,6.3628]
[1744379678744,6.36173,1571.9,1571.6,6.3628]
[1744379678941,6.36153,1572.0,1571.6,12.72561]
[1744379678942,12.72322,1572.0,1571.6,12.72561]
[1744379679120,8.02531,1572.1,1571.8,6.36195]
[1744379679444,14.38638,1572.1,1571.8,6.36195]
[1744379680018,6.09,1572.8,1571.9,0.636195]
[1744379680350,6.36031,1572.3,1571.9,6.36139]
[1744379680508,12.72066,1572.3,1572.0,6.36125]
[1744379680839,12.72066,1572.3,1571.9,6.36139]
[1744379681042,6.36067,1572.2,1571.9,6.36139]
[1744379681540,12.7215,1572.2,1571.8,2.04825543]
[1744379681745,6.36021,1572.3,1572.0,6.36115]
[1744379681934,7.88711,1572.5,1572.2,6.36051]
[1744379682114,6.3604,1572.3,1571.9,6.36139]
[1744379682325,6.36053,1572.2,1571.9,6.36139]
[1744379682646,12.72048,1572.3,1571.9,12.72299]
[1744379683139,6.36128,1572.1,1571.7,6.36241]
[1744379683344,6.997578,1572.0,1571.7,6.36241]
[1744379683508,6.36145,1572.0,1571.7,6.36241]
[1744379683927,12.72294,1572.0,1571.6,14.34498]
[1744379684141,6.36145,1572.0,1571.7,6.36252]
[1744379684325,6.36145,1572.0,1571.6,12.72568]
[1744379684326,12.72302,1572.0,1571.6,12.72568]
[1744379684537,6.362,1571.9,1571.5,6.36318]
[1744379684734,7.633692,1572.0,1571.6,6.36288]
[1744379685030,6.36139,1572.0,1571.6,12.72569]
[1744379685339,12.72298,1572.0,1571.6,12.72569]
[1744379685659,6.36175,1571.9,1571.6,12.72562]
[1744379685813,12.72292,1572.0,1571.6,12.72562]
[1744379686148,6.36335,1571.5,1571.1,6.36495]
[1744379686335,6.36335,1571.5,1571.2,6.36441]
[1744379686537,6.36335,1571.5,1571.3,0.21518625]
[1744379686736,1.5019,1571.8,1571.3,0.21518625]
[1744379686933,12.72639,1571.6,1571.3,0.21518625]
[1744379687233,7.86408,1571.8,1571.5,6.36307]
[1744379687422,6.36307,1571.6,1571.3,9.31327125]
[1744379687619,7.99675,1571.3,1571.2,0.29911366]
[1744379687820,20.05175,1571.3,1571.2,0.29911366]
[1744379688011,7.86927,1570.9,1570.8,5.9383144]
[1744379688216,7.86927,1570.9,1570.6,5.9383144]
[1744379688217,6.36631,1570.8,1570.6,5.9383144]
[1744379688423,6.36658,1570.7,1570.6,5.9383144]
[1744379688624,3.55,1571.4,1570.7,1.6146]
[1744379688845,1.6524,1571.0,1570.7,6.3664]
[1744379689157,1.6524,1571.2,1570.8,6.36582]
[1744379689334,1.6524,1571.2,1570.9,6.36574]
[1744379689527,7.91294,1571.4,1571.0,6.36534]
[1744379689728,7.91294,1571.4,1571.1,6.36487]
[1744379689927,6.36423,1571.3,1571.0,6.36534]
[1744379690136,7.791947,1571.3,1570.6,12.3051444]
[1744379690346,6.3647,1571.2,1570.8,6.36609]
[1744379690570,6.3647,1571.2,1570.8,6.36602]
[1744379690845,6.3647,1571.2,1570.8,12.73207]
[1744379691143,7.791957,1571.3,1570.8,6.36618]
[1744379691347,14.156407,1571.3,1570.9,6.36561]
[1744379691550,14.156407,1571.3,1570.9,12.73123]
[1744379691551,7.791957,1571.3,1570.9,12.73123]
[1744379691845,7.791957,1571.3,1570.9,6.36561]
[1744379692050,1.5491,1571.4,1571.0,0.06365492]
[1744379692251,9.055,1571.5,1571.3,6.36403]
[1744379693068,9.055,1571.5,1571.1,0.06363953]
[1744379693250,1.5655,1571.4,1570.7,1.5106]
[1744379693413,6.3649,1571.2,1570.8,6.36599]
[1744379693617,6.36434,1571.3,1571.0,6.36537]
[1744379693817,6.36383,1571.4,1571.0,6.36524]
[1744379694052,12.72787,1571.4,1571.0,6.36524]
[1744379694216,6.36383,1571.4,1571.0,6.36524]
[1744379694545,6.36383,1571.4,1571.1,6.36489]
[1744379695162,15.41844,1571.5,1571.1,12.72969]
[1744379695320,6.3632,1571.6,1571.2,7.875]
[1744379695521,6.36335,1571.5,1571.2,6.3644]
[1744379695752,6.3632,1571.6,1571.2,12.72879]
[1744379695963,6.3632,1571.6,1571.3,6.36415]
[1744379696119,1.272583,1571.6,1571.3,12.7283]
[1744379696453,6.36263,1571.7,1571.2,12.7289]
[1744379696658,12.058,1571.8,1571.3,6.36393]
[1744379696874,9.058,1571.8,1571.5,6.36333]
[1744379697181,15.42014,1571.8,1571.4,6.36351]
[1744379697335,21.87267548,1571.8,1571.4,6.3637]
[1744379697664,9.058,1571.8,1571.5,6.36322]
[1744379698033,9.058,1571.8,1571.4,12.72748]
[1744379698264,9.058,1571.8,1571.4,1.6024]
[1744379698569,9.058,1571.8,1571.5,12.72628]
[1744379698934,51.1605,1571.9,1571.7,6.36253]
[1744379699140,51.1605,1571.9,1571.5,7.796158]
[1744379699337,57.52234,1571.9,1571.5,6.36322]
[1744379699541,6.36226,1571.8,1571.4,6.3636]
[1744379699762,6.36224,1571.8,1571.2,1.6024]
[1744379699970,51.1605,1571.9,1571.2,7.9668]
[1744379700185,8.01948,1571.5,1571.1,12.72971]
[1744379700472,9.058,1571.6,1571.3,6.36407]
[1744379700670,9.058,1571.6,1571.0,1.6024]
[1744379701062,9.058,1571.6,1571.3,6.36398]
[1744379701249,9.058,1571.6,1571.2,6.36444]
[1744379701436,9.058,1571.6,1571.3,6.36396]
[1744379701639,9.058,1571.6,1571.5,6.36334]
[1744379701840,9.058,1571.6,1571.4,6.36361]
[1744379702472,9.058,1571.6,1571.4,6.3636]
[1744379702772,16.49256,1571.6,1571.2,6.36441]
[1744379702957,6.36406,1571.4,1571.0,7.96765]
[1744379703138,6.36454,1571.3,1570.9,6.36568]
[1744379703341,6.36517,1571.1,1570.7,7.96882]
[1744379703580,6.36594,1570.9,1570.5,6.36723]
[1744379703886,1.656,1571.0,1570.4,1.6024]
[1744379704174,8.02288,1570.7,1570.2,5.9383144]
[1744379704480,1.5467,1570.3,1570.2,5.9383144]
[1744379704787,19.98594,1570.6,1570.2,18.6755344]
[1744379704952,16.98682,1570.6,1570.2,14.17931784]
[1744379705153,6.36756,1570.5,1570.2,5.9383144]
[1744379705466,6.36789,1570.4,1570.1,6.41888]
[1744379705860,6.36756,1570.5,1570.1,6.41887]
[1744379706074,16.9866,1570.6,1570.1,0.05]
[1744379706389,6.36861,1570.2,1570.1,0.05]
[1744379706594,7.90571,1570.2,1570.1,0.05]
[1744379706884,9.179408,1570.2,1570.1,0.05]
[1744379707189,12.179408,1570.2,1570.1,0.05]
[1744379707559,12.729408,1570.2,1570.1,0.05]
[1744379708108,15.52194962,1570.2,1570.1,0.05]
[1744379708246,17.11254962,1570.2,1570.1,0.05]
[1744379708553,12.782908,1570.2,1570.1,0.05]
[1744379708754,12.232908,1570.2,1570.1,0.05]
[1744379709146,12.782908,1570.2,1570.1,0.05]
[1744379709760,12.232908,1570.2,1570.1,0.05]
[1744379710503,1.5906,1570.2,1570.1,0.05]
[1744379710806,49.618,1570.3,1570.1,0.05]
[1744379711089,1.5334,1570.9,1570.6,6.3668]
[1744379711255,59.329517,1571.1,1570.7,6.36657]
[1744379711461,58.693,1571.1,1570.7,7.153677]
[1744379711780,58.693,1571.1,1570.6,1.505]
[1744379711985,58.693,1571.1,1570.8,6.36588]
[1744379712182,58.693,1571.1,1571.0,6.36537]
[1744379712381,9.052,1571.1,1571.0,7.95097]
[1744379712787,13.78708202,1571.1,1571.0,1.5856]
[1744379712988,13.78708202,1571.1,1570.8,6.366]
[1744379713296,20.15210202,1571.1,1570.7,7.98045]
[1744379713498,6.3656,1571.0,1570.7,1.6139]
[1744379713793,17.37949222,1571.1,1570.7,7.98036]
[1744379713794,30.10961222,1571.1,1570.7,7.98036]
[1744379713958,20.15210202,1571.1,1570.8,6.36614]
[1744379714293,13.78708202,1571.1,1571.0,6.36537]
[1744379714497,13.78708202,1571.1,1570.9,6.36574]
[1744379714697,13.78708202,1571.1,1570.9,6.36566]
[1744379714887,13.78708202,1571.1,1570.9,12.73126]
[1744379715086,13.78708202,1571.1,1570.9,6.3656]
[1744379715400,9.052,1571.1,1570.9,6.3656]
[1744379715787,9.052,1571.1,1571.0,6.36537]
[1744379716178,9.052,1571.1,1570.9,6.42925077]
[1744379716380,9.052,1571.1,1570.6,6.36684]
[1744379716381,6.36579,1570.9,1570.6,6.36684]
[1744379716590,6.36549,1571.0,1570.7,6.36645]
[1744379716782,16.32225,1571.1,1570.8,6.3661]
[1744379717297,16.32225,1571.1,1570.7,6.3664]
[1744379717597,6.36551,1571.0,1570.7,6.3664]
[1744379717799,6.36551,1571.0,1570.7,12.73283]
[1744379718001,16.32225,1571.1,1570.8,6.36617]
[1744379718600,9.9572,1571.1,1570.8,6.36611]
[1744379718900,6.36613,1570.9,1570.5,7.92605]
[1744379719205,12.73212,1570.9,1570.5,7.92605]
[1744379719407,6.36599,1570.9,1570.5,7.92605]
[1744379719618,6.36596,1570.9,1570.5,7.92605]
[1744379719816,7.264558,1570.9,1570.5,7.92605]
[1744379720308,6.36842,1570.3,1570.1,0.05]
[1744379720475,9.05,1570.2,1570.1,6.41902]
[1744379720873,15.41861,1570.2,1570.1,0.05]
[1744379721298,18.41861,1570.2,1570.1,0.05]
[1744379721988,20.06331,1570.2,1570.1,0.05]
[1744379723072,17.06331,1570.2,1570.1,0.05]
[1744379723279,9.05,1570.2,1570.1,0.05]
[1744379723506,20.02861,1570.2,1570.1,0.05]
[1744379723672,23.855131,1570.2,1570.1,0.05]
[1744379723874,23.305131,1570.2,1570.1,0.05]
[1744379724774,20.02861,1570.2,1570.1,0.05]
[1744379726682,9.052,1570.2,1570.1,0.05]
[1744379727707,15.42007,1570.6,1570.3,6.36807]
[1744379727891,6.36743,1570.5,1570.2,6.36845]
[1744379728118,9.053,1570.6,1570.4,12.73546]
[1744379728411,9.053,1570.6,1570.4,6.36775]
[1744379728904,9.053,1570.6,1570.5,6.36739]
[1744379729078,15.42002,1570.6,1570.3,7.88536]
[1744379729586,9.053,1570.6,1570.4,6.36779]
[1744379729988,15.42002,1570.6,1570.3,9.310739]
[1744379730285,6.36781,1570.4,1570.1,14.32431]
[1744379730631,15.42006,1570.6,1570.2,6.36823]
[1744379730920,15.42006,1570.6,1570.1,7.95544]
[1744379730921,6.36752,1570.5,1570.1,7.95544]
[1744379731099,15.42006,1570.6,1570.2,6.36835]
[1744379731407,15.42006,1570.6,1570.2,6.43202709]
[1744379731573,6.36861,1570.2,1570.1,0.05]
[1744379733006,6.36848,1570.3,1570.1,0.05]
[1744379733205,12.73688,1570.3,1570.1,0.05]
[1744379733502,6.36861,1570.2,1570.1,0.05]
[1744379735420,15.41061,1570.2,1570.1,0.05]
[1744379735640,18.22535,1570.2,1570.1,0.05]
[1744379737329,25.55499162,1570.2,1570.1,0.05]
[1744379737528,27.07229162,1570.2,1570.1,0.05]
[1744379739035,22.74265,1570.2,1570.1,0.05]
[1744379739393,27.62229162,1570.2,1570.1,1e-05]
[1744379739922,6.37172,1569.5,1569.3,1.5728]
[1744379740113,6.37186,1569.4,1569.3,1.5728]
[1744379740725,6.37186,1569.4,1569.1,1.6103]
[1744379740925,6.37239,1569.3,1569.1,1.6103]
[1744379741422,6.37267,1569.2,1569.1,1.6103]
[1744379741930,6.37239,1569.3,1569.1,0.05]
[1744379742129,6.37267,1569.2,1569.1,0.05]
[1744379742331,15.41667,1569.2,1569.1,0.05]
[1744379743945,18.41667,1569.2,1569.1,0.05]
[1744379746119,9.044,1569.2,1569.1,0.05]
[1744379746406,9.044,1569.2,1569.1,1.698]
[1744379746606,9.044,1569.2,1569.1,0.05]
[1744379746607,16.958309,1569.2,1569.1,0.05]
[1744379747950,19.958309,1569.2,1569.1,0.05]
[1744379752140,20.508309,1569.2,1569.1,0.05]
[1744379753279,20.508309,1569.2,1569.1,1e-05]
[1744379753432,22.064209,1569.2,1569.1,1e-05]
[1744379753878,21.514209,1569.2,1569.1,1e-05]
[1744379755572,19.958309,1569.2,1569.1,1e-05]
[1744379756180,9.044,1569.2,1569.1,1e-05]
[1744379756993,15.41667,1569.2,1569.1,1e-05]
[1744379758286,18.41667,1569.2,1569.1,1e-05]
[1744379759550,18.96667,1569.2,1569.1,1e-05]
[1744379760371,18.41667,1569.2,1569.1,1e-05]
[1744379760674,22.10913146,1569.2,1569.1,1e-05]
[1744379761320,22.65913146,1569.2,1569.1,1e-05]
[1744379761982,22.10913146,1569.2,1569.1,1e-05]
[1744379762177,22.65913146,1569.2,1569.1,1e-05]
[1744379763193,22.10913146,1569.2,1569.1,1e-05]
[1744379763484,18.41667,1569.2,1569.1,1e-05]
[1744379763706,6.37239,1569.3,1569.1,1e-05]
[1744379763908,6.37267,1569.2,1569.1,1e-05]
[1744379764223,9.035,1569.3,1569.1,6.37298]
[1744379764431,6.37196,1569.4,1569.1,1e-05]
[1744379764609,49.668,1569.5,1569.4,6.37186]
[1744379764807,21.77667,1569.7,1569.5,1.6061]
[1744379764996,15.4058,1569.7,1569.5,1.6061]
[1744379765182,6.37104,1569.6,1569.5,1.6061]
[1744379765582,12.74227,1569.6,1569.3,1.593]
[1744379765842,9.035,1569.7,1569.3,1.593]
[1744379765843,15.40575,1569.7,1569.3,1.65671595]
[1744379765996,9.035,1569.7,1569.5,6.37126]
[1744379766423,9.035,1569.7,1569.5,12.74257]
[1744379766612,9.035,1569.7,1569.5,6.37126]
[1744379767126,9.035,1569.7,1569.6,1.5054]
[1744379767941,9.035,1569.7,1569.6,7.87644]
[1744379768090,9.035,1569.7,1569.6,1.5054]
[1744379768625,9.034,1570.1,1570.0,6.36939]
[1744379768825,9.034,1570.1,1570.0,1.5463]
[1744379769726,6.36875,1570.2,1570.0,1.5463]
[1744379769927,9.034,1570.5,1570.0,1.60998961]
[1744379770226,6.36809,1570.4,1570.0,7.91536]
[1744379770433,6.36834,1570.3,1570.0,7.91536]
[1744379770636,6.36884,1570.2,1570.0,1.5463]
[1744379770948,6.36837,1570.3,1570.0,7.91568]
[1744379771123,12.73681,1570.3,1570.0,1.5463]
[1744379771322,1.273681,1570.3,1570.0,1.5463]
[1744379771497,12.73706,1570.3,1570.0,1.5463]
[1744379771934,13.29179457,1570.5,1569.7,6.37058]
[1744379771935,12.7375,1570.2,1569.7,6.37058]
[1744379772136,12.7375,1570.2,1569.8,1.5728]
[1744379772137,6.36927,1570.1,1569.8,1.5728]
[1744379772335,12.73765,1570.2,1569.8,1.5728]
[1744379772541,6.36864,1570.2,1569.8,7.94295]
[1744379772724,7.43128346,1570.2,1569.8,7.94295]
[1744379772931,7.43128346,1570.2,1569.8,7.94287]
[1744379773330,7.43128346,1570.2,1569.8,1.5728]
[1744379773513,13.80029346,1570.2,1569.8,1.5728]
[1744379773849,9.36916,1570.1,1569.8,1.5728]
[1744379774009,0.936916,1570.0,1569.8,1.5728]
[1744379774808,7.43132346,1570.2,1569.8,7.94302]
[1744379775164,10.43138346,1570.2,1569.8,7.94302]
[1744379775443,6.36896,1570.2,1569.8,7.9429]
[1744379775859,5.86269457,1570.4,1570.0,6.36919]
[1744379775860,12.23051457,1570.4,1570.0,6.36919]
[1744379776001,6.36828,1570.3,1569.9,6.36979]
[1744379776201,12.73668,1570.3,1569.9,6.36968]
[1744379776646,6.36828,1570.3,1569.9,12.73936]
[1744379776827,6.36781,1570.4,1570.0,6.36907]
[1744379777142,12.736,1570.4,1570.0,6.36907]
[1744379777345,6.3683,1570.3,1569.9,6.36976]
[1744379777733,6.36876,1570.2,1569.8,14.31301]
[1744379777928,14.011266,1570.2,1569.8,7.94285]
[1744379778151,6.36911,1570.1,1569.8,7.94285]
[1744379778643,6.36787,1570.4,1569.8,7.94285]
[1744379778852,6.36876,1570.2,1569.8,14.31296]
[1744379779146,6.36923,1570.1,1569.8,1.5728]
[1744379779445,6.3682,1570.3,1569.8,14.31298]
[1744379779446,6.3687,1570.2,1569.8,14.31298]
[1744379779807,6.3687,1570.2,1569.9,6.36968]
[1744379780334,7.642401,1570.2,1569.9,6.36968]
[1744379780523,14.011201,1570.2,1569.8,14.31312]
[1744379780719,7.642401,1570.2,1569.8,14.31312]
[1744379780924,6.36921,1570.1,1569.8,1.5728]
[1744379781447,7.642421,1570.2,1569.9,6.36976]
[1744379781653,6.36845,1570.3,1569.9,6.36976]
[1744379781943,7.305295,1570.3,1570.0,6.36931]
[1744379782238,0.936845,1570.3,1570.1,6.369]
[1744379782441,9.36816,1570.4,1570.0,6.36935]
[1744379782648,6.36829,1570.3,1570.0,6.36935]
[1744379782828,9.034,1570.5,1570.1,0.0636908]
[1744379783028,9.034,1570.5,1570.2,6.36833]
[1744379783406,6.36798,1570.4,1570.0,7.93283]
[1744379783611,14.276218,1570.4,1570.0,14.30213]
[1744379783946,6.36825,1570.3,1570.0,1.5636]
[1744379784246,6.36881,1570.2,1570.0,1.5636]
[1744379784949,3.056298,1570.4,1570.1,6.3688]
[1744379784950,1.540198,1570.4,1570.1,6.3688]
[1744379785246,15.40156,1570.5,1570.1,6.3688]
[1744379785449,6.3679,1570.4,1570.1,6.3688]
[1744379785620,17.2621466,1570.5,1570.1,12.73769]
[1744379785819,23.6298566,1570.5,1570.0,1.5636]
[1744379786012,9.034,1570.5,1570.4,1.573]
[1744379786330,9.034,1570.5,1570.4,7.9408]
[1744379786505,9.034,1570.5,1570.4,1.573]
[1744379787305,9.034,1570.5,1570.2,14.31802]
[1744379787506,9.034,1570.5,1570.2,7.94951]
[1744379787704,6.36797,1570.4,1570.2,1.581]
[1744379788137,6.36795,1570.4,1570.0,8.03334]
[1744379788311,6.36858,1570.3,1570.0,1.664]
[1744379788515,6.36822,1570.3,1569.8,1.664]
[1744379788740,12.73845,1570.1,1569.8,1.664]
[1744379789055,1.273845,1570.1,1569.8,1.664]
[1744379789210,6.36918,1570.1,1569.8,1.664]
[1744379789411,6.36947,1570.0,1569.8,1.664]
[1744379789711,6.36983,1569.9,1569.6,8.03492]
[1744379790309,6.36983,1569.9,1569.6,1.664]
[1744379790878,6.36983,1569.9,1569.6,8.03503]
[1744379791088,14.91667,1569.9,1569.6,8.03503]
[1744379791268,6.37064,1569.7,1569.4,6.37182]
[1744379791468,6.37038,1569.8,1569.4,7.88343]
[1744379791838,6.37038,1569.8,1569.4,14.25516]
[1744379792238,6.37024,1569.8,1569.5,6.37143]
[1744379792480,15.39749,1570.0,1569.6,6.37102]
[1744379792780,9.028,1570.0,1569.7,12.7412]
[1744379792936,9.028,1570.0,1569.8,6.37022]
[1744379793266,15.39757,1570.0,1569.7,6.3706]
[1744379793477,6.36997,1569.9,1569.6,1.6114]
[1744379793638,8.546718,1569.9,1569.6,1.6114]
[1744379793842,6.37039,1569.8,1569.6,1.6114]
[1744379794534,9.028,1570.0,1569.6,7.9823]
[1744379794535,15.39756,1570.0,1569.6,7.9823]
[1744379794766,9.028,1570.0,1569.8,6.37005]
[1744379795357,9.028,1570.0,1569.7,12.74112]
[1744379795536,9.028,1570.0,1569.7,12.74107]
[1744379795761,9.028,1570.0,1569.7,12.74103]
[1744379795971,15.39754,1570.0,1569.6,14.35332]
[1744379796141,9.028,1570.0,1569.7,12.74106]
[1744379796468,9.028,1570.0,1569.7,6.37049]
[1744379796770,9.028,1570.0,1569.8,6.71874974]
[1744379796959,9.028,1570.0,1569.8,13.08884974]
[1744379797164,9.028,1570.0,1569.8,0.34868974]
[1744379797372,16.937324,1570.0,1569.8,0.34868974]
[1744379797568,9.028,1570.0,1569.8,0.34868974]
[1744379797867,9.028,1570.0,1569.8,12.74008]
[1744379798099,9.028,1570.0,1569.8,6.37]
[1744379798315,9.028,1570.0,1569.7,6.37052]
[1744379798584,9.028,1570.0,1569.8,6.37011]
[1744379798792,9.028,1570.0,1569.7,6.37054]
[1744379798938,9.028,1570.0,1569.6,7.98237]
[1744379799144,9.028,1570.0,1569.7,12.74108]
[1744379799347,1.6042,1570.3,1569.7,6.37064]
[1744379799578,7.97268,1570.3,1569.9,6.36945]
[1744379799739,6.36848,1570.3,1569.9,14.30675]
[1744379799935,9.009,1570.4,1570.0,0.06369203]
[1744379800187,9.009,1570.4,1570.3,7.985]
[1744379800585,9.009,1570.4,1570.3,8.5486998]
[1744379801150,12.73258,1570.8,1570.4,6.3678]
[1744379801348,6.36665,1570.7,1570.3,8.3337299]
[1744379801549,6.3678,1570.4,1570.3,0.3487299]
[1744379801749,6.36744,1570.5,1570.3,0.3487299]
[1744379802123,6.36744,1570.5,1570.2,6.36849]
[1744379802710,6.36744,1570.5,1570.2,12.73698]
[1744379802852,7.93577,1570.6,1570.2,12.73698]
[1744379803053,15.8869465,1570.6,1570.2,6.36849]
[1744379803494,15.8870765,1570.6,1570.2,6.36849]
[1744379803867,12.73504,1570.5,1570.1,14.36682]
[1744379804054,6.36744,1570.5,1570.1,7.99791]
[1744379804255,6.36744,1570.5,1570.2,6.3686]
[1744379804479,15.8869165,1570.6,1570.2,6.3686]
[1744379805192,9.5197265,1570.6,1570.2,6.36848]
[1744379805366,15.8869865,1570.6,1570.2,6.36848]
[1744379805683,9.5197265,1570.6,1570.2,6.36848]
[1744379805889,15.8869065,1570.6,1570.2,6.36848]
[1744379806085,1.58869065,1570.5,1570.2,6.36848]
[1744379806252,1.537565,1570.7,1570.2,6.3685]
[1744379806451,1.537565,1570.7,1570.3,6.36808]
[1744379806684,7.904255,1570.7,1570.3,6.36808]
[1744379806888,1.537565,1570.7,1570.3,6.36808]
[1744379807070,6.3666,1570.7,1570.3,12.73616]
[1744379807276,12.73335,1570.7,1570.3,6.36808]
[1744379807478,6.36705,1570.6,1570.2,6.3685]
[1744379807677,6.36705,1570.6,1570.2,12.73695]
[1744379808056,6.36705,1570.6,1570.3,6.36819]
[1744379808387,12.73351,1570.7,1570.3,6.36819]
[1744379808589,8.698971,1570.7,1570.3,12.73638]
[1744379808779,6.3666,1570.7,1570.3,12.73638]
[1744379808974,12.73351,1570.7,1570.3,6.36819]
[1744379809180,6.3666,1570.7,1570.3,6.36819]
[1744379810204,6.3666,1570.7,1570.3,12.73627]
[1744379810404,21.74165,1570.8,1570.3,6.36781]
[1744379810702,21.74165,1570.8,1570.3,13.372491]
[1744379811095,15.3753,1570.8,1570.4,6.36779]
[1744379811281,21.74166,1570.8,1570.4,6.36779]
[1744379811708,21.74166,1570.8,1570.3,7.004591]